fUST/lending_fUST_20250226
["ID","MTS","AMOUNT","RATE_DAILY","PERIOD"]
[354551511,1740571848858,-500.0,0.00062191,120]
[354551512,1740571848868,-151.0,0.00062191,120]
[354551513,1740571848877,-500.0,0.00062191,120]
[354551514,1740571848887,-500.0,0.00062191,120]
[354551515,1740571848897,-500.0,0.00062191,120]
[354551516,1740571848907,-500.0,0.00062191,120]
[354551517,1740571848916,-500.0,0.00062191,120]
[354551518,1740571848926,-500.0,0.00062191,120]
[354551519,1740571848936,-198.67096702,0.00062191,120]
[354551520,1740571848945,-510.05816572,0.00062191,120]
[354551521,1740571848954,-500.0,0.00062191,120]
[354551522,1740571848964,-500.0,0.00062191,120]
[354551523,1740571848973,-1016.81,0.00062191,120]
[354551524,1740571848983,-500.0,0.00062191,120]
[354551525,1740571848992,-2768.35,0.00062191,120]
[354551526,1740571849002,-500.0,0.00062191,120]
[354551527,1740571849012,-500.0,0.00062191,120]
[354551528,1740571849022,-500.0,0.00062191,120]
[354551529,1740571849032,-500.0,0.00062191,120]
[354551530,1740571849041,-500.0,0.00062191,120]
[354551531,1740571849051,-500.0,0.00062191,120]
[354551532,1740571849060,-500.0,0.00062191,120]
[354551533,1740571849070,-726.13,0.00062191,120]
[354551534,1740571849080,-1376.95,0.00062191,120]
[354551535,1740571849089,-250.037586,0.00062191,120]
[354551536,1740571849098,-500.0,0.00062191,120]
[354551537,1740571849108,-500.0,0.00062191,120]
[354551538,1740571849117,-544.42,0.00062191,120]
[354551539,1740571849127,-250.037586,0.00062191,120]
[354551540,1740571849136,-500.0,0.00062191,120]
[354551541,1740571849146,-500.0,0.00062191,120]
[354551542,1740571849156,-500.0,0.00062191,120]
[354551543,1740571849165,-622.95,0.00062191,120]
[354551544,1740571849175,-500.0,0.00062191,120]
[354551545,1740571849185,-500.0,0.00062191,120]
[354551546,1740571849194,-500.0,0.00062191,120]
[354551547,1740571849204,-500.0,0.00062191,120]
[354551548,1740571849214,-500.0,0.00062191,120]
[354551549,1740571849224,-500.0,0.00062191,120]
[354551550,1740571849234,-500.0,0.00062191,120]
[354551551,1740571849244,-500.0,0.00062191,120]
[354551552,1740571849254,-500.0,0.00062191,120]
[354551553,1740571849264,-500.0,0.00062191,120]
[354551554,1740571849274,-500.0,0.00062191,120]
[354551555,1740571849285,-500.0,0.00062191,120]
[354551556,1740571849294,-978.45,0.00062191,120]
[354551557,1740571849305,-500.0,0.00062191,120]
[354551558,1740571849315,-500.0,0.00062191,120]
[354551559,1740571849324,-500.0,0.00062191,120]
[354551560,1740571849334,-500.0,0.00062191,120]
[354551561,1740571849343,-635.28082503,0.00062191,120]
[354551562,1740571849354,-972.14,0.00062191,120]
[354551563,1740571849364,-500.0,0.00062191,120]
[354551564,1740571849373,-1198.81,0.00062191,3]
[354551565,1740571849383,-500.0,0.00062191,120]
[354551566,1740571849392,-1717.17,0.00062191,120]
[354551567,1740571849401,-7459.75,0.00062191,7]
[354551568,1740571849411,-500.0,0.00062191,120]
[354551569,1740571849420,-264.331781,0.00062191,120]
[354551570,1740571849430,-500.0,0.00062191,120]
[354551571,1740571849439,-500.0,0.00062191,120]
[354551572,1740571849449,-500.0,0.00062191,120]
[354551573,1740571849458,-500.0,0.00062191,120]
[354551574,1740571849467,-500.0,0.00062191,120]
[354551575,1740571849476,-12253.19,0.00062191,120]
[354551576,1740571849486,-500.0,0.00062191,120]
[354551577,1740571849495,-500.0,0.00062191,120]
[354551578,1740571849504,-500.0,0.00062191,120]
[354551579,1740571849515,-791.66,0.00062191,120]
[354551580,1740571849524,-500.0,0.00062191,120]
[354551581,1740571849534,-500.0,0.00062191,120]
[354551582,1740571849543,-504.06765899,0.00062191,120]
[354551583,1740571849554,-500.0,0.00062191,120]
[354551584,1740571849564,-500.0,0.00062191,120]
[354551585,1740571849573,-500.0,0.00062191,120]
[354551586,1740571849584,-500.0,0.00062191,120]
[354551587,1740571849593,-500.0,0.00062191,120]
[354551588,1740571849602,-500.0,0.00062191,120]
[354551589,1740571849612,-500.0,0.00062191,120]
[354551590,1740571849622,-500.0,0.00062191,120]
[354551591,1740571849631,-500.0,0.00062191,120]
[354551592,1740571849641,-500.0,0.00062191,120]
[354551593,1740571849650,-500.0,0.00062191,120]
[354551594,1740571849660,-500.0,0.00062191,120]
[354551595,1740571849669,-2989.03,0.00062191,120]
[354551596,1740571849678,-500.0,0.00062191,120]
[354551597,1740571849688,-500.0,0.00062191,30]
[354551598,1740571849698,-805.72553433,0.00062752,15]
[354551599,1740571849708,-978.45181516,0.00062752,14]
[354551600,1740571849718,-1000.0,0.00062752,14]
[354551601,1740571849727,-1000.0,0.00062752,14]
[354551602,1740571849737,-16812.01,0.00063013,120]
[354551603,1740571849747,-1500.0,0.00063014,120]
[354551604,1740571849757,-710.54,0.00063287,120]
[354551605,1740571849766,-250.0,0.00063287,120]
[354551606,1740571849775,-250.0,0.00063287,120]
[354551607,1740571849784,-156.27304823,0.00064,120]
[354551608,1740571849797,-152.09,0.00064,30]
[354551609,1740571849807,-151.0,0.00064,24]
[354551610,1740571849817,-1668.14,0.00064657,120]
[354551611,1740571849826,-500.0,0.00064657,120]
[354551612,1740571849835,-500.0,0.00064657,120]
[354551613,1740571849845,-500.0,0.00064657,120]
[354551614,1740571849855,-500.0,0.00064657,120]
[354551615,1740571849864,-500.0,0.00064657,120]
[354551616,1740571849873,-500.0,0.00064657,120]
[354551617,1740571849883,-500.0,0.00064657,120]
[354551618,1740571849892,-500.0,0.00064657,120]
[354551619,1740571849902,-500.0,0.00064657,120]
[354551620,1740571849911,-366.25647139,0.00064657,120]
[354551621,1740571849921,-500.0,0.00064657,120]
[354551622,1740571849930,-500.0,0.00064657,120]
[354551623,1740571849940,-500.0,0.00064657,120]
[354551624,1740571849950,-195.8609163,0.00064657,120]
[354551625,1740571849959,-500.0,0.00064657,120]
[354551626,1740571849969,-1757.86,0.00064657,120]
[354551627,1740571849978,-500.0,0.00064657,120]
[354551628,1740571849987,-500.0,0.00064657,120]
[354551629,1740571849996,-500.0,0.00064657,120]
[354551630,1740571850007,-500.0,0.00064657,120]
[354551631,1740571850016,-500.0,0.00064657,120]
[354551632,1740571850025,-500.0,0.00064657,120]
[354551633,1740571850035,-217.30890266,0.00064657,120]
[354551634,1740571850044,-500.0,0.00064657,120]
[354551635,1740571850054,-500.0,0.00064657,120]
[354551636,1740571850063,-500.0,0.00064657,120]
[354551637,1740571850072,-500.0,0.00064657,120]
[354551638,1740571850081,-500.0,0.00064657,120]
[354551639,1740571850090,-500.0,0.00064657,120]
[354551640,1740571850099,-500.0,0.00064657,120]
[354551641,1740571850109,-500.0,0.00064657,120]
[354551642,1740571850118,-500.0,0.00064657,120]
[354551643,1740571850128,-500.0,0.00064657,120]
[354551644,1740571850137,-500.0,0.00064657,120]
[354551645,1740571850147,-500.0,0.00064657,120]
[354551646,1740571850156,-300.0,0.00064657,120]
[354551647,1740571850165,-367.52712783,0.00064657,120]
[354551648,1740571850175,-500.0,0.00064657,120]
[354551649,1740571850184,-500.0,0.00064657,120]
[354551650,1740571850194,-500.0,0.00064657,120]
[354551651,1740571850203,-500.0,0.00064657,120]
[354551652,1740571850212,-500.0,0.00064657,120]
[354551653,1740571850222,-500.0,0.00064657,120]
[354551654,1740571850232,-500.0,0.00064657,120]
[354551655,1740571850241,-500.0,0.00064657,120]
[354551656,1740571850250,-500.0,0.00064657,120]
[354551657,1740571850260,-500.0,0.00064657,120]
[354551658,1740571850269,-500.0,0.00064657,120]
[354551659,1740571850278,-500.0,0.00064657,120]
[354551660,1740571850288,-500.0,0.00064657,120]
[354551661,1740571850297,-500.0,0.00064657,120]
[354551662,1740571850306,-500.0,0.00064657,120]
[354551663,1740571850315,-500.0,0.00064657,120]
[354551664,1740571850324,-465.72,0.00064657,120]
[354551665,1740571850334,-500.0,0.00064657,120]
[354551666,1740571850343,-500.0,0.00064657,120]
[354551667,1740571850352,-500.0,0.00064657,120]
[354551668,1740571850362,-151.0,0.00064657,120]
[354551669,1740571850372,-536.13,0.00064657,120]
[354551670,1740571850382,-500.0,0.00064657,120]
[354551671,1740571850392,-500.0,0.00064657,120]
[354551672,1740571850401,-500.0,0.00064657,120]
[354551673,1740571850411,-223.104991,0.00064657,120]
[354551674,1740571850420,-223.104991,0.00064657,120]
[354551675,1740571850430,-500.0,0.00064657,120]
[354551676,1740571850440,-500.0,0.00064657,120]
[354551677,1740571850449,-900.04,0.00064657,120]
[354551678,1740571850458,-500.0,0.00064657,120]
[354551679,1740571850468,-500.0,0.00064657,120]
[354551680,1740571850477,-500.0,0.00064657,120]
[354551681,1740571850487,-500.0,0.00064657,120]
[354551682,1740571850496,-500.0,0.00064657,120]
[354551683,1740571850507,-500.0,0.00064657,120]
[354551684,1740571850517,-500.0,0.00064657,120]
[354551685,1740571850527,-500.0,0.00064657,120]
[354551686,1740571850537,-500.0,0.00064657,21]
[354551687,1740571850547,-500.0,0.00064657,120]
[354551688,1740571850556,-964.14,0.00064657,120]
[354551689,1740571850566,-340.27021663,0.00064657,120]
[354551690,1740571850575,-621.41295892,0.00064657,120]
[354551691,1740571850584,-392.2325545,0.00064657,120]
[354551692,1740571850593,-324.591403,0.00064657,120]
[354551693,1740571850602,-500.0,0.00064657,120]
[354551694,1740571850613,-324.591403,0.00064657,120]
[354551695,1740571850622,-500.0,0.00064657,120]
[354551696,1740571850632,-151.0,0.00064657,110]
[354551697,1740571850641,-500.0,0.00064657,120]
[354551698,1740571850651,-500.0,0.00064657,120]
[354551699,1740571850660,-500.0,0.00064657,120]
[354551700,1740571850669,-500.0,0.00064657,120]
[354551701,1740571850679,-500.0,0.00064657,120]
[354551702,1740571850688,-500.0,0.00064657,120]
[354551703,1740571850698,-151.0,0.00064657,120]
[354551704,1740571850711,-500.0,0.00064657,120]
[354551705,1740571850727,-625.31935806,0.00064657,120]
[354551706,1740571850740,-500.0,0.00064657,120]
[354551707,1740571850750,-500.0,0.00064657,120]
[354551708,1740571850759,-500.0,0.00064657,120]
[354551709,1740571850768,-500.0,0.00064657,120]
[354551710,1740571850777,-500.0,0.00064657,120]
[354551711,1740571850787,-500.0,0.00064657,120]
[354551712,1740571850798,-1016.81,0.00064657,120]
[354551713,1740571850809,-500.0,0.00064657,120]
[354551714,1740571850818,-2768.35,0.00064657,120]
[354551715,1740571850827,-500.0,0.00064657,120]
[354551716,1740571850837,-500.0,0.00064657,120]
[354551717,1740571850846,-500.0,0.00064657,120]
[354551718,1740571850855,-500.0,0.00064657,120]
[354551719,1740571850865,-240.41967557,0.00064657,120]
[354551720,1740571850874,-500.0,0.00064657,120]
[354551721,1740571850884,-500.0,0.00064657,120]
[354551722,1740571850893,-726.13,0.00064657,120]
[354551723,1740571850903,-1376.95,0.00064657,120]
[354551724,1740571850912,-250.037586,0.00064657,120]
[354551725,1740571850921,-500.0,0.00064657,120]
[354551726,1740571850931,-500.0,0.00064657,120]
[354551727,1740571850940,-544.42,0.00064657,120]
[354551728,1740571850949,-250.037586,0.00064657,120]
[354551729,1740571850959,-500.0,0.00064657,120]
[354551730,1740571850968,-500.0,0.00064657,120]
[354551731,1740571850977,-500.0,0.00064657,120]
[354551732,1740571850986,-622.95,0.00064657,120]
[354551733,1740571850995,-500.0,0.00064657,120]
[354551734,1740571851006,-500.0,0.00064657,120]
[354551735,1740571851015,-500.0,0.00064657,120]
[354551736,1740571851024,-500.0,0.00064657,120]
[354551737,1740571851033,-500.0,0.00064657,120]
[354551738,1740571851042,-500.0,0.00064657,120]
[354551740,1740571851051,-500.0,0.00064657,120]
[354551742,1740571851060,-500.0,0.00064657,120]
[354551744,1740571851070,-500.0,0.00064657,120]
[354551746,1740571851079,-500.0,0.00064657,120]
[354551748,1740571851088,-500.0,0.00064657,120]
[354551750,1740571851097,-500.0,0.00064657,120]
[354551752,1740571851106,-978.45,0.00064657,120]
[354551754,1740571851115,-500.0,0.00064657,120]
[354551756,1740571851124,-500.0,0.00064657,120]
[354551758,1740571851133,-567.33944001,0.00064657,120]
[354551760,1740571851143,-500.0,0.00064657,120]
[354551761,1740571851152,-972.14,0.00064657,120]
[354551762,1740571851161,-500.0,0.00064657,120]
[354551763,1740571851171,-1198.81,0.00064657,3]
[354551764,1740571851180,-500.0,0.00064657,120]
[354551765,1740571851189,-1717.17,0.00064657,120]
[354551766,1740571851199,-7459.75,0.00064657,7]
[354551767,1740571851208,-178.15,0.00064657,120]
[354551768,1740571851217,-500.0,0.00064657,120]
[354551769,1740571851226,-500.0,0.00064657,120]
[354551770,1740571851235,-500.0,0.00064657,120]
[354551771,1740571851245,-500.0,0.00064657,120]
[354551772,1740571851254,-500.0,0.00064657,120]
[354551773,1740571851265,-12253.19,0.00064657,120]
[354551774,1740571851274,-599.36494105,0.00064657,120]
[354551775,1740571851283,-500.0,0.00064657,120]
[354551776,1740571851292,-500.0,0.00064657,120]
[354551777,1740571851302,-791.66,0.00064657,120]
[354551778,1740571851311,-500.0,0.00064657,120]
[354551779,1740571851320,-500.0,0.00064657,120]
[354551780,1740571851330,-500.0,0.00064657,120]
[354551781,1740571851339,-500.0,0.00064657,120]
[354551782,1740571851348,-512.40037222,0.00064657,120]
[354551783,1740571851358,-500.0,0.00064657,120]
[354551784,1740571851367,-500.0,0.00064657,120]
[354551785,1740571851377,-500.0,0.00064657,120]
[354551786,1740571851388,-500.0,0.00064657,120]
[354551787,1740571851398,-287.7898288,0.00064657,120]
[354551788,1740571851408,-500.0,0.00064657,120]
[354551789,1740571851418,-500.0,0.00064657,120]
[354551790,1740571851426,-2989.03,0.00064657,120]
[354551791,1740571851436,-500.0,0.00064657,120]
[354551792,1740571851445,-500.0,0.00064657,30]
[354551793,1740571851455,-182.49933976,0.000648,2]
[354551794,1740571851465,-151.0,0.00064861,2]
[354551795,1740571851475,-100375.48826701,0.000649,2]
[354551796,1740571851484,-2909.39254587,0.000649,2]
[354551797,1740571851493,-250.037586,0.000649,120]
[354551798,1740571851503,-250.037586,0.000649,120]
[354551799,1740571851514,-10000.0,0.00065,65]
[354551800,1740571851524,-1000.0,0.00065,120]
[354551801,1740571851533,-28818.94898397,0.00065,120]
[354551802,1740571851654,-83144.86403292,0.00065,120]
[354551803,1740571851666,-9949.82120392,0.00065,120]
[354551804,1740571851678,-22027.34636979,0.00065,120]
[354551805,1740571851812,-323.34963506,0.00065,120]
[354551806,1740571851824,-388.96000007,0.00065,120]
[354551807,1740571851836,-255.76003803,0.00065,120]
[354551808,1740571851979,-480.0,0.00046265,17]
[354551809,1740571851989,-750.0,0.00065,120]
[354551810,1740571852001,-1662.5,0.00065,120]
[354551811,1740571852231,-811.41394517,0.00065,120]
[354551812,1740571852242,-4273.2602824,0.00065,120]
[354551813,1740571852254,-885.17,0.00065,120]
[354551814,1740572005694,19601.91606613,5.6e-07,2]
[354551815,1740572647304,150.95,0.0001512,120]
[354551823,1740572914359,5583.69574796,0.00026,60]
[354551859,1740573034736,-2960.0,0.0001876,2]
[354551860,1740573034746,-196.70894327,0.00044364,30]
[354551861,1740573034756,-235.511048,0.00047424,2]
[354551862,1740573034765,-602.9689211,0.00047472,2]
[354551863,1740573034775,-350.0,0.00049999,15]
[354551864,1740573034784,-1000.0,0.0005,60]
[354551865,1740573034794,-300.0,0.000504,14]
[354551866,1740573034803,-533.92,0.000504,48]
[354551867,1740573034813,-533.92,0.000504,48]
[354551868,1740573034822,-533.92,0.000504,48]
[354551869,1740573034831,-533.92,0.000504,48]
[354551870,1740573034841,-533.92,0.000504,48]
[354551871,1740573034851,-533.92,0.000504,48]
[354551872,1740573034860,-533.92,0.000504,48]
[354551873,1740573034870,-533.92,0.000504,48]
[354551874,1740573034879,-533.92,0.000504,48]
[354551875,1740573034888,-533.92,0.000504,48]
[354551876,1740573034898,-496.5190198,0.000504,48]
[354551877,1740573034909,-37.4009802,0.000504,48]
[354551878,1740573034919,-533.92,0.000504,48]
[354551879,1740573034928,-472.2804,0.00053,30]
[354551880,1740573034937,-1000.0,0.00053297,60]
[354551881,1740573034946,-1095.21958828,0.00054,120]
[354551882,1740573034955,-204.42742184,0.00054,120]
[354551883,1740573034964,-156.57986862,0.00054693,28]
[354551884,1740573034974,-169.0559484,0.00054694,2]
[354551885,1740573034983,-500.0,0.00054773,10]
[354551886,1740573034992,-500.0,0.00054773,10]
[354551887,1740573035001,-500.0,0.00054773,10]
[354551888,1740573035010,-500.0,0.00054773,10]
[354551889,1740573035020,-500.0,0.00054773,10]
[354551890,1740573035030,-1750.2962161,0.00054784,5]
[354551891,1740573035039,-12322.0,0.00054792,30]
[354551892,1740573035049,-155.731,0.00054793,103]
[354551893,1740573035058,-171.79979306,0.00054793,103]
[354551894,1740573035069,-500.0,0.00054793,120]
[354551895,1740573035079,-1000.0,0.00054793,120]
[354551896,1740573035088,-158.90439415,0.00054793,120]
[354551897,1740573035097,-631.42020327,0.00054793,2]
[354551898,1740573035107,-500.0,0.00054793,120]
[354551899,1740573035116,-500.0,0.00054793,120]
[354551900,1740573035129,-500.0,0.00054793,120]
[354551901,1740573035139,-526.77494542,0.00054793,120]
[354551902,1740573035148,-500.0,0.00054793,120]
[354551903,1740573035157,-509.60084509,0.00054793,120]
[354551904,1740573035167,-500.0,0.00054793,120]
[354551905,1740573035179,-500.0,0.00054794,120]
[354551906,1740573035189,-569.37771067,0.00054794,120]
[354551907,1740573035199,-582.92141479,0.00054794,120]
[354551908,1740573035210,-518.20651418,0.00054794,2]
[354551909,1740573035220,-500.0,0.00054794,120]
[354551910,1740573035230,-500.37913378,0.00054794,120]
[354551911,1740573035239,-543.15951438,0.00054794,120]
[354551912,1740573035249,-500.0,0.00054794,120]
[354551913,1740573035258,-500.0,0.00054794,120]
[354551914,1740573035267,-352.36947082,0.00054794,120]
[354551915,1740573035294,-500.0,0.00054793,120]
[354551916,1740573035303,-500.0,0.00054793,120]
[354551917,1740573035315,-147.63052918,0.00054794,120]
[354551918,1740573035323,-500.0,0.00054794,120]
[354551919,1740573035332,-500.0,0.00054794,120]
[354551920,1740573035341,-504.15081958,0.00054794,120]
[354551921,1740573035350,-169.86942194,0.00054794,120]
[354551922,1740573035360,-500.0,0.00054794,120]
[354551923,1740573035369,-500.0,0.00054794,120]
[354551924,1740573035378,-500.0,0.00054794,120]
[354551925,1740573035387,-500.0,0.00054794,120]
[354551926,1740573035396,-500.0,0.00054794,120]
[354551927,1740573035405,-500.0,0.00054794,120]
[354551928,1740573035415,-500.0,0.00054794,120]
[354551929,1740573035424,-500.0,0.00054794,120]
[354551930,1740573035434,-500.0,0.00054794,120]
[354551931,1740573035443,-500.0,0.00054794,120]
[354551932,1740573035452,-500.0,0.00054794,120]
[354551933,1740573035461,-500.0,0.00054794,120]
[354551934,1740573035470,-187.7885143,0.00054794,120]
[354551935,1740573035480,-500.0,0.00054794,120]
[354551936,1740573035489,-384.98105427,0.00054794,120]
[354551937,1740573035499,-500.0,0.00054794,120]
[354551938,1740573035508,-499.00000089,0.00054794,120]
[354551939,1740573035517,-500.0,0.00054794,120]
[354551940,1740573035526,-500.0,0.00054794,120]
[354551941,1740573035536,-1391.64,0.00054794,120]
[354551942,1740573035545,-500.0,0.00054794,120]
[354551943,1740573035554,-500.0,0.00054794,120]
[354551944,1740573035564,-500.0,0.00054794,120]
[354551945,1740573035573,-500.0,0.00054794,120]
[354551946,1740573035583,-500.0,0.00054794,120]
[354551947,1740573035592,-504.10731782,0.00054794,120]
[354551948,1740573035602,-500.0,0.00054794,120]
[354551949,1740573035611,-500.0,0.00054794,120]
[354551950,1740573035621,-500.0,0.00054794,120]
[354551951,1740573035631,-500.0,0.00054794,120]
[354551952,1740573035640,-207.24081228,0.00054794,120]
[354551953,1740573035650,-500.0,0.00054794,120]
[354551954,1740573035660,-500.0,0.00054794,120]
[354551955,1740573035670,-500.0,0.00054794,120]
[354551956,1740573035679,-500.0,0.00054794,120]
[354551957,1740573035688,-500.0,0.00054794,120]
[354551958,1740573035698,-500.0,0.00054794,120]
[354551959,1740573035707,-448.24833262,0.00054794,120]
[354551960,1740573035716,-508.0579383,0.00054794,120]
[354551961,1740573035725,-512.51953487,0.00054794,120]
[354551962,1740573035735,-500.0,0.00054794,120]
[354551963,1740573035744,-500.0,0.00054794,120]
[354551964,1740573035753,-500.0,0.00054794,120]
[354551965,1740573035762,-500.0,0.00054794,120]
[354551966,1740573035772,-500.0,0.00054794,120]
[354551967,1740573035781,-500.0,0.00054794,120]
[354551968,1740573035790,-500.0,0.00054794,120]
[354551969,1740573035799,-500.0,0.00054794,120]
[354551970,1740573035808,-500.0,0.00054794,120]
[354551971,1740573035819,-506.34596585,0.00054794,120]
[354551972,1740573035828,-253.46857592,0.00054794,120]
[354551973,1740573035838,-197.92311508,0.00054794,120]
[354551974,1740573035847,-359.52313968,0.00054794,120]
[354551975,1740573035857,-502.46777828,0.00054794,120]
[354551976,1740573035866,-556.09864368,0.00054794,120]
[354551977,1740573035875,-500.0,0.00054794,120]
[354551978,1740573035884,-500.0,0.00054794,120]
[354551979,1740573035894,-500.0,0.00054794,120]
[354551980,1740573035904,-500.0,0.00054794,120]
[354551981,1740573035914,-507.90971082,0.00054794,120]
[354551982,1740573035923,-500.0,0.00054794,120]
[354551983,1740573035933,-500.0,0.00054794,120]
[354551984,1740573035943,-506.08114183,0.00054794,120]
[354551985,1740573035952,-500.0,0.00054794,120]
[354551986,1740573035962,-500.0,0.00054794,120]
[354551987,1740573035972,-500.0,0.00054794,120]
[354551988,1740573035981,-500.0,0.00054794,120]
[354551989,1740573035991,-500.0,0.00054794,120]
[354551990,1740573036001,-500.0,0.00054794,120]
[354551991,1740573036011,-500.0,0.00054794,120]
[354551992,1740573036021,-500.0,0.00054794,120]
[354551993,1740573036031,-500.80926623,0.00054794,120]
[354551994,1740573036041,-500.0,0.00054794,120]
[354551995,1740573036051,-500.0,0.00054794,120]
[354551996,1740573036061,-281.03189048,0.00054794,120]
[354551997,1740573036073,-500.0,0.00054794,120]
[354551998,1740573036083,-500.0,0.00054794,120]
[354551999,1740573036093,-500.0,0.00054794,120]
[354552000,1740573036104,-296.67786258,0.00054794,120]
[354552001,1740573036114,-500.0,0.00054794,120]
[354552002,1740573036124,-500.0,0.00054794,120]
[354552003,1740573036137,-500.0,0.00054794,120]
[354552004,1740573036147,-529.14067277,0.00054794,120]
[354552005,1740573036156,-500.0,0.00054794,120]
[354552006,1740573036166,-500.0,0.00054794,120]
[354552007,1740573036177,-500.0,0.00054794,120]
[354552008,1740573036187,-167.5472119,0.00054794,120]
[354552009,1740573036196,-500.0,0.00054794,120]
[354552010,1740573036206,-511.14155031,0.00054794,120]
[354552011,1740573036215,-500.0,0.00054794,120]
[354552012,1740573036224,-500.0,0.00054794,120]
[354552013,1740573036233,-500.0,0.00054794,120]
[354552014,1740573036243,-500.0,0.00054794,120]
[354552015,1740573036252,-500.0,0.00054794,120]
[354552016,1740573036261,-500.28283846,0.00054794,120]
[354552017,1740573036270,-500.0,0.00054794,120]
[354552018,1740573036280,-500.0,0.00054794,120]
[354552019,1740573036290,-500.0,0.00054794,120]
[354552020,1740573036299,-500.0,0.00054794,120]
[354552021,1740573036308,-500.0,0.00054794,120]
[354552022,1740573036319,-500.0,0.00054794,120]
[354552023,1740573036329,-500.0,0.00054794,120]
[354552024,1740573036338,-504.14636842,0.00054794,120]
[354552025,1740573036347,-500.0,0.00054794,120]
[354552026,1740573036357,-500.0,0.00054794,120]
[354552027,1740573036367,-500.0,0.00054794,120]
[354552028,1740573036377,-500.0,0.00054794,120]
[354552029,1740573036386,-500.0,0.00054794,120]
[354552030,1740573036396,-500.0,0.00054794,120]
[354552031,1740573036405,-500.0,0.00054794,120]
[354552032,1740573036415,-500.0,0.00054794,120]
[354552033,1740573036425,-300.0,0.00054794,120]
[354552034,1740573036435,-511.88453993,0.00054794,120]
[354552035,1740573036445,-500.0,0.00054794,30]
[354552036,1740573036454,-500.0,0.00054794,120]
[354552037,1740573036464,-500.0,0.00054794,120]
[354552038,1740573036473,-500.0,0.00054794,120]
[354552039,1740573036482,-500.0,0.00054794,120]
[354552040,1740573036492,-500.0,0.00054794,120]
[354552041,1740573036501,-583.04021555,0.00054794,120]
[354552042,1740573036511,-500.0,0.00054794,120]
[354552043,1740573036520,-500.0,0.00054794,120]
[354552044,1740573036529,-500.0,0.00054794,120]
[354552045,1740573036538,-500.0,0.00054794,120]
[354552046,1740573036547,-500.0,0.00054794,120]
[354552047,1740573036556,-500.0,0.00054794,120]
[354552048,1740573036566,-500.0,0.00054794,120]
[354552049,1740573036575,-500.0,0.00054794,120]
[354552050,1740573036584,-500.0,0.00054794,120]
[354552051,1740573036593,-500.0,0.00054794,120]
[354552052,1740573036602,-500.0,0.00054794,120]
[354552053,1740573036612,-500.0,0.00054794,120]
[354552054,1740573036621,-640.53785926,0.00054794,120]
[354552055,1740573036630,-500.0,0.00054794,120]
[354552056,1740573036640,-500.0,0.00054794,120]
[354552057,1740573036649,-500.0,0.00054794,120]
[354552058,1740573036659,-500.0,0.00054794,120]
[354552059,1740573036668,-500.0,0.00054794,120]
[354552060,1740573036677,-500.0,0.00054794,120]
[354552061,1740573036687,-500.0,0.00054794,120]
[354552062,1740573036696,-500.0,0.00054794,120]
[354552063,1740573036705,-500.0,0.00054794,120]